[Event "*** SCC Grand Prix: Titled Tuesday Blitz"]
[Site "Chess.com"]
[Date "2020.07.21"]
[Round "4"]
[White "Jbd735"]
[Black "doons21"]
[Result "1-0"]
[WhiteElo "2482"]
[BlackElo "2633"]
[TimeControl "180+1"]
[EndTime "10:39:25 PDT"]
[Termination "Jbd735 won by checkmate"]

1. e4 {[%clk 0:03:00.9]} 1... c5 {[%clk 0:02:59.2]} 2. Nf3 {[%clk 0:03:00.1]}
2... d6 {[%clk 0:02:59.5]} 3. d4 {[%clk 0:03:00.8]} 3... cxd4 {[%clk 0:03:00.4]}
4. Nxd4 {[%clk 0:03:01.3]} 4... Nf6 {[%clk 0:03:00.5]} 5. Nc3 {[%clk 0:03:02]}
5... a6 {[%clk 0:03:00.2]} 6. Bg5 {[%clk 0:03:02.7]} 6... e6 {[%clk 0:03:00]} 7.
f4 {[%clk 0:03:03.3]} 7... Be7 {[%clk 0:02:59.8]} 8. Qe2 {[%clk 0:03:04]} 8...
Qc7 {[%clk 0:02:58.5]} 9. O-O-O {[%clk 0:03:04]} 9... Nbd7 {[%clk 0:02:58.2]}
10. Nf3 {[%clk 0:03:02.3]} 10... h6 {[%clk 0:02:54.5]} 11. Bh4 {[%clk
0:02:59.1]} 11... e5 {[%clk 0:02:43.7]} 12. fxe5 {[%clk 0:02:40.9]} 12... dxe5
{[%clk 0:02:43.3]} 13. Nd5 {[%clk 0:02:30.4]} 13... Nxd5 {[%clk 0:02:42.8]} 14.
exd5 {[%clk 0:02:21.7]} 14... Bxh4 {[%clk 0:02:39.7]} 15. Nxh4 {[%clk
0:02:16.4]} 15... O-O {[%clk 0:02:33.3]} 16. Nf5 {[%clk 0:02:05.2]} 16... Nf6
{[%clk 0:02:15.6]} 17. d6 {[%clk 0:02:04.1]} 17... Qa5 {[%clk 0:02:16]} 18. Ne7+
{[%clk 0:02:02.6]} 18... Kh8 {[%clk 0:02:14.1]} 19. Nxc8 {[%clk 0:01:57.1]}
19... Raxc8 {[%clk 0:02:09.5]} 20. Kb1 {[%clk 0:01:55.5]} 20... Rfd8 {[%clk
0:01:53.8]} 21. g3 {[%clk 0:01:43.5]} 21... Rc6 {[%clk 0:01:35.3]} 22. Bg2
{[%clk 0:01:16.6]} 22... Rb6 {[%clk 0:01:31.8]} 23. Rhe1 {[%clk 0:00:54.4]}
23... Rdxd6 {[%clk 0:00:53.1]} 24. Rxd6 {[%clk 0:00:48.6]} 24... Rxd6 {[%clk
0:00:52.2]} 25. Bxb7 {[%clk 0:00:48.5]} 25... Rd2 {[%clk 0:00:37.2]} 26. Qxa6
{[%clk 0:00:40.8]} 26... Qc7 {[%clk 0:00:25]} 27. Be4 {[%clk 0:00:25.4]} 27...
Qd8 {[%clk 0:00:18]} 28. a4 {[%clk 0:00:14.8]} 28... g6 {[%clk 0:00:15.9]} 29.
Bd3 {[%clk 0:00:13.8]} 29... e4 {[%clk 0:00:14.8]} 30. Bxe4 {[%clk 0:00:12.7]}
30... Rd1+ {[%clk 0:00:15.4]} 31. Rxd1 {[%clk 0:00:12.6]} 31... Qxd1+ {[%clk
0:00:16.3]} 32. Ka2 {[%clk 0:00:12.6]} 32... Qd4 {[%clk 0:00:16.7]} 33. Qa8+
{[%clk 0:00:11.8]} 33... Kg7 {[%clk 0:00:17]} 34. Bd3 {[%clk 0:00:11.8]} 34...
Nd5 {[%clk 0:00:16.9]} 35. Qa5 {[%clk 0:00:08.2]} 35... Nb4+ {[%clk 0:00:16.2]}
36. Kb3 {[%clk 0:00:07.9]} 36... Nc6 {[%clk 0:00:14.8]} 37. Qc3 {[%clk
0:00:07.7]} 37... Kf6 {[%clk 0:00:11.8]} 38. Qxd4+ {[%clk 0:00:07.6]} 38...
Nxd4+ {[%clk 0:00:12.7]} 39. Kc4 {[%clk 0:00:07]} 39... Ke5 {[%clk 0:00:13.6]}
40. a5 {[%clk 0:00:06.5]} 40... Ne6 {[%clk 0:00:12.1]} 41. a6 {[%clk 0:00:06.3]}
41... Kd6 {[%clk 0:00:12]} 42. a7 {[%clk 0:00:05.9]} 42... Nc7 {[%clk
0:00:12.5]} 43. Be4 {[%clk 0:00:06.1]} 43... f5 {[%clk 0:00:13]} 44. a8=Q {[%clk
0:00:05.8]} 44... Nxa8 {[%clk 0:00:12.9]} 45. Bxa8 {[%clk 0:00:06.7]} 45... g5
{[%clk 0:00:13]} 46. Bf3 {[%clk 0:00:06.6]} 46... Ke5 {[%clk 0:00:12.4]} 47. Kd3
{[%clk 0:00:06.5]} 47... g4 {[%clk 0:00:13]} 48. Be2 {[%clk 0:00:06.4]} 48... f4
{[%clk 0:00:13.9]} 49. Bxg4 {[%clk 0:00:05.7]} 49... fxg3 {[%clk 0:00:13.9]} 50.
hxg3 {[%clk 0:00:06.6]} 50... Kf6 {[%clk 0:00:14.3]} 51. Bh5 {[%clk 0:00:07.1]}
51... Kg5 {[%clk 0:00:15.2]} 52. g4 {[%clk 0:00:07.8]} 52... Kf4 {[%clk
0:00:15.5]} 53. b4 {[%clk 0:00:08.7]} 53... Kg5 {[%clk 0:00:16.4]} 54. c4 {[%clk
0:00:09.4]} 54... Kf4 {[%clk 0:00:17.3]} 55. b5 {[%clk 0:00:10.2]} 55... Kg5
{[%clk 0:00:18.2]} 56. c5 {[%clk 0:00:10.8]} 56... Kf4 {[%clk 0:00:19.1]} 57. c6
{[%clk 0:00:11.7]} 57... Kg5 {[%clk 0:00:20]} 58. Kc4 {[%clk 0:00:12.4]} 58...
Kf4 {[%clk 0:00:20.9]} 59. Kc5 {[%clk 0:00:13.3]} 59... Kg5 {[%clk 0:00:21.8]}
60. b6 {[%clk 0:00:14.2]} 60... Kf4 {[%clk 0:00:22.7]} 61. c7 {[%clk 0:00:15]}
61... Kg5 {[%clk 0:00:23.6]} 62. b7 {[%clk 0:00:15.5]} 62... Kf4 {[%clk
0:00:24.5]} 63. b8=R {[%clk 0:00:13.1]} 63... Kg5 {[%clk 0:00:25.4]} 64. c8=Q
{[%clk 0:00:13]} 64... Kf4 {[%clk 0:00:26.3]} 65. Qf5+ {[%clk 0:00:12.8]} 65...
Kg3 {[%clk 0:00:26.5]} 66. g5 {[%clk 0:00:11.4]} 66... Kh4 {[%clk 0:00:27.4]}
67. gxh6 {[%clk 0:00:10.9]} 67... Kg3 {[%clk 0:00:27.3]} 68. Qg4+ {[%clk
0:00:10.6]} 68... Kf2 {[%clk 0:00:27.5]} 69. h7 {[%clk 0:00:10.5]} 69... Kf1
{[%clk 0:00:28.4]} 70. h8=Q {[%clk 0:00:10.3]} 70... Ke1 {[%clk 0:00:29.3]} 71.
Qe5+ {[%clk 0:00:09.9]} 71... Kf1 {[%clk 0:00:30.2]} 72. Qf3+ {[%clk 0:00:09.5]}
72... Kg1 {[%clk 0:00:30.3]} 73. Rg8# {[%clk 0:00:09.2]} 1-0

[Event "*** SCC Grand Prix: Titled Tuesday Blitz"]
[Site "Chess.com"]
[Date "2020.07.21"]
[Round "4"]
[White "Vladislav_Chizhikov"]
[Black "ulises2013"]
[Result "0-1"]
[WhiteElo "2457"]
[BlackElo "2632"]
[TimeControl "180+1"]
[EndTime "10:39:26 PDT"]
[Termination "ulises2013 won by resignation"]

1. e4 {[%clk 0:03:00.9]} 1... g6 {[%clk 0:02:59.8]} 2. d4 {[%clk 0:03:00.4]}
2... Bg7 {[%clk 0:02:59.8]} 3. Nc3 {[%clk 0:03:00.9]} 3... c5 {[%clk 0:02:59.8]}
4. Be3 {[%clk 0:03:00.6]} 4... Qa5 {[%clk 0:02:59.5]} 5. Qd2 {[%clk 0:03:00]}
5... Nf6 {[%clk 0:02:59.5]} 6. f3 {[%clk 0:02:59.8]} 6... cxd4 {[%clk
0:02:59.6]} 7. Bxd4 {[%clk 0:02:59.6]} 7... Nc6 {[%clk 0:03:00.2]} 8. Be3 {[%clk
0:02:59.8]} 8... d6 {[%clk 0:03:00]} 9. Nge2 {[%clk 0:02:56.4]} 9... O-O {[%clk
0:02:55.7]} 10. Bh6 {[%clk 0:02:55.8]} 10... Rd8 {[%clk 0:02:52.6]} 11. h4
{[%clk 0:02:52.3]} 11... d5 {[%clk 0:02:52.1]} 12. Bxg7 {[%clk 0:02:50.2]} 12...
Kxg7 {[%clk 0:02:49]} 13. exd5 {[%clk 0:02:26.1]} 13... Nxd5 {[%clk 0:02:47.6]}
14. h5 {[%clk 0:02:24.7]} 14... Nxc3 {[%clk 0:02:41.3]} 15. h6+ {[%clk
0:02:11.1]} 15... Kf8 {[%clk 0:02:36.1]} 16. Qxc3 {[%clk 0:02:11.3]} 16... Qxc3+
{[%clk 0:02:35.5]} 17. Nxc3 {[%clk 0:02:11.8]} 17... Nb4 {[%clk 0:02:35.1]} 18.
Rc1 {[%clk 0:01:50.2]} 18... Bf5 {[%clk 0:02:34.1]} 19. g4 {[%clk 0:01:50]}
19... Bxc2 {[%clk 0:02:30.7]} 20. a3 {[%clk 0:01:43.1]} 20... Nd3+ {[%clk
0:02:29.9]} 21. Bxd3 {[%clk 0:01:43.3]} 21... Bxd3 {[%clk 0:02:30.8]} 22. Kf2
{[%clk 0:01:39.1]} 22... f6 {[%clk 0:02:29.9]} 23. Rhd1 {[%clk 0:01:34.9]} 23...
Kf7 {[%clk 0:02:25.2]} 24. Ke3 {[%clk 0:01:35]} 24... Bc4 {[%clk 0:02:12.3]} 25.
f4 {[%clk 0:01:26.9]} 25... Bb3 {[%clk 0:01:57.8]} 26. Rxd8 {[%clk 0:01:24.8]}
26... Rxd8 {[%clk 0:01:58.7]} 27. Ne4 {[%clk 0:01:20]} 27... Bd5 {[%clk
0:01:04.1]} 28. Rc7 {[%clk 0:01:18.3]} 28... Bxe4 {[%clk 0:00:17.7]} 29. Kxe4
{[%clk 0:01:18.1]} 29... Rb8 {[%clk 0:00:18.4]} 30. g5 {[%clk 0:01:13.2]} 30...
f5+ {[%clk 0:00:17.7]} 31. Ke5 {[%clk 0:01:13.5]} 31... a6 {[%clk 0:00:16.4]}
32. b3 {[%clk 0:00:57.7]} 32... b5 {[%clk 0:00:14]} 33. Ra7 {[%clk 0:00:55.4]}
33... Rb6 {[%clk 0:00:12.6]} 34. Kd5 {[%clk 0:00:43.6]} 34... Rd6+ {[%clk
0:00:10.9]} 35. Kc5 {[%clk 0:00:42.4]} 35... Re6 {[%clk 0:00:09.7]} 36. b4
{[%clk 0:00:41.9]} 36... Re4 {[%clk 0:00:09.8]} 37. Rxa6 {[%clk 0:00:42]} 37...
Rxf4 {[%clk 0:00:10.3]} 38. Kxb5 {[%clk 0:00:42.9]} 38... Rg4 {[%clk 0:00:10.5]}
39. a4 {[%clk 0:00:42.7]} 39... Rxg5 {[%clk 0:00:10.9]} 40. a5 {[%clk
0:00:43.6]} 40... f4+ {[%clk 0:00:11.4]} 41. Kc4 {[%clk 0:00:42.6]} 41... f3
{[%clk 0:00:11.7]} 42. Kd3 {[%clk 0:00:42.9]} 42... Rf5 {[%clk 0:00:11.7]} 43.
Rc6 {[%clk 0:00:33.7]} 43... f2 {[%clk 0:00:11.6]} 44. Rc1 {[%clk 0:00:34.3]}
44... f1=Q+ {[%clk 0:00:12.5]} 45. Rxf1 {[%clk 0:00:34.3]} 45... Rxf1 {[%clk
0:00:13.4]} 46. a6 {[%clk 0:00:34.8]} 46... Ra1 {[%clk 0:00:12.3]} 47. b5 {[%clk
0:00:35.2]} 47... g5 {[%clk 0:00:12.8]} 48. Ke4 {[%clk 0:00:30.2]} 48... Kf6
{[%clk 0:00:12.9]} 49. Kd5 {[%clk 0:00:28.6]} 49... g4 {[%clk 0:00:13.2]} 50.
Ke4 {[%clk 0:00:20]} 50... Kg5 {[%clk 0:00:12.7]} 51. Ke3 {[%clk 0:00:18.3]}
51... Kxh6 {[%clk 0:00:12.3]} 52. Kf4 {[%clk 0:00:19.2]} 52... Kh5 {[%clk
0:00:12.8]} 53. Ke4 {[%clk 0:00:17.8]} 53... Kh4 {[%clk 0:00:12.7]} 54. Kd4
{[%clk 0:00:17.6]} 54... g3 {[%clk 0:00:13.1]} 55. Kc5 {[%clk 0:00:18.5]} 55...
g2 {[%clk 0:00:13.4]} 56. b6 {[%clk 0:00:19.4]} 56... g1=Q+ {[%clk 0:00:14.3]}
57. Kc6 {[%clk 0:00:19]} 57... Rxa6 {[%clk 0:00:14.9]} 58. Kd7 {[%clk
0:00:19.2]} 58... Qxb6 {[%clk 0:00:14.2]} 59. Ke8 {[%clk 0:00:20.1]} 59... e5
{[%clk 0:00:14.2]} 0-1

[Event "*** SCC Grand Prix: Titled Tuesday Blitz"]
[Site "Chess.com"]
[Date "2020.07.21"]
[Round "4"]
[White "Xeniya2005"]
[Black "j2806"]
[Result "1-0"]
[WhiteElo "2381"]
[BlackElo "2050"]
[TimeControl "180+1"]
[EndTime "10:39:26 PDT"]
[Termination "Xeniya2005 won by resignation"]

1. e4 {[%clk 0:03:00.9]} 1... c5 {[%clk 0:02:59.5]} 2. Be2 {[%clk 0:02:58.8]}
2... Nc6 {[%clk 0:02:55.2]} 3. f4 {[%clk 0:02:58]} 3... g6 {[%clk 0:02:52.4]} 4.
Nf3 {[%clk 0:02:57.3]} 4... Bg7 {[%clk 0:02:52.7]} 5. d3 {[%clk 0:02:56.3]} 5...
e6 {[%clk 0:02:52.8]} 6. O-O {[%clk 0:02:55.9]} 6... Nge7 {[%clk 0:02:52.8]} 7.
c3 {[%clk 0:02:52.7]} 7... O-O {[%clk 0:02:52]} 8. Be3 {[%clk 0:02:52.1]} 8...
b6 {[%clk 0:02:51]} 9. Nbd2 {[%clk 0:02:51.1]} 9... Bb7 {[%clk 0:02:49.1]} 10.
d4 {[%clk 0:02:47.6]} 10... cxd4 {[%clk 0:02:45.2]} 11. cxd4 {[%clk 0:02:46.8]}
11... d5 {[%clk 0:02:44.2]} 12. e5 {[%clk 0:02:45.4]} 12... Nf5 {[%clk
0:02:41.4]} 13. Bf2 {[%clk 0:02:45.2]} 13... h5 {[%clk 0:02:40.6]} 14. Rc1
{[%clk 0:02:34.2]} 14... Rc8 {[%clk 0:02:34.7]} 15. a3 {[%clk 0:02:23.4]} 15...
a6 {[%clk 0:02:27.8]} 16. Rc3 {[%clk 0:02:19.2]} 16... b5 {[%clk 0:02:24.8]} 17.
Qc2 {[%clk 0:02:14.5]} 17... Qb6 {[%clk 0:02:17.9]} 18. Nb3 {[%clk 0:01:52.3]}
18... Na5 {[%clk 0:02:07.3]} 19. Nc5 {[%clk 0:01:46.7]} 19... Bc6 {[%clk
0:01:55.4]} 20. Rc1 {[%clk 0:01:39.7]} 20... Nc4 {[%clk 0:01:54.1]} 21. Nd2
{[%clk 0:01:15.6]} 21... Bh6 {[%clk 0:01:50.5]} 22. g3 {[%clk 0:01:10.9]} 22...
Rfd8 {[%clk 0:01:44.1]} 23. Ra1 {[%clk 0:01:01.4]} 23... h4 {[%clk 0:01:40.2]}
24. Nf3 {[%clk 0:00:47.7]} 24... hxg3 {[%clk 0:01:38.9]} 25. hxg3 {[%clk
0:00:48.6]} 25... Na5 {[%clk 0:01:25.4]} 26. b3 {[%clk 0:00:46.2]} 26... Nb7
{[%clk 0:01:22.5]} 27. Rc1 {[%clk 0:00:44.7]} 27... a5 {[%clk 0:01:15.4]} 28. g4
{[%clk 0:00:41.2]} 28... Ne7 {[%clk 0:01:10.2]} 29. Bh4 {[%clk 0:00:34.8]} 29...
Bf8 {[%clk 0:01:04.4]} 30. b4 {[%clk 0:00:29.6]} 30... axb4 {[%clk 0:01:03.9]}
31. axb4 {[%clk 0:00:29]} 31... Re8 {[%clk 0:01:02]} 32. Bf6 {[%clk 0:00:27.9]}
32... Bg7 {[%clk 0:01:01.2]} 33. Bxg7 {[%clk 0:00:27.1]} 33... Kxg7 {[%clk
0:01:01.5]} 34. Kg2 {[%clk 0:00:25.5]} 34... Rh8 {[%clk 0:01:00.5]} 35. Nxe6+
{[%clk 0:00:20]} 35... fxe6 {[%clk 0:00:58.7]} 36. Ng5 {[%clk 0:00:20.1]} 36...
Bd7 {[%clk 0:00:55.5]} 37. Qd2 {[%clk 0:00:18.3]} 37... Rxc3 {[%clk 0:00:52.8]}
38. Rxc3 {[%clk 0:00:19.2]} 38... Nd8 {[%clk 0:00:46.1]} 39. Qe3 {[%clk
0:00:14.3]} 39... Nf7 {[%clk 0:00:44.6]} 40. Nf3 {[%clk 0:00:13.5]} 40... Nh6
{[%clk 0:00:43.3]} 41. Kg3 {[%clk 0:00:13]} 41... Nf7 {[%clk 0:00:40.2]} 42. Bd3
{[%clk 0:00:12.7]} 42... Qa6 {[%clk 0:00:37.5]} 43. Be2 {[%clk 0:00:11.7]} 43...
Qa4 {[%clk 0:00:37]} 44. Rb3 {[%clk 0:00:10.9]} 44... Nc6 {[%clk 0:00:33.5]} 45.
Qc3 {[%clk 0:00:10.4]} 45... Qa6 {[%clk 0:00:30.1]} 46. Ra3 {[%clk 0:00:09.9]}
46... Qb7 {[%clk 0:00:30.2]} 47. Qd2 {[%clk 0:00:10.3]} 47... Ne7 {[%clk
0:00:29.9]} 48. Rc3 {[%clk 0:00:09]} 48... Qb8 {[%clk 0:00:29.2]} 49. Ra3 {[%clk
0:00:08.9]} 49... Rh7 {[%clk 0:00:28.1]} 50. Qa2 {[%clk 0:00:08.7]} 50... Qh8
{[%clk 0:00:27.7]} 51. Ra7 {[%clk 0:00:07.9]} 51... Qe8 {[%clk 0:00:21.1]} 52.
Qa6 {[%clk 0:00:06.4]} 52... Nd8 {[%clk 0:00:17.7]} 53. Qd6 {[%clk 0:00:05.1]}
53... Nc8 {[%clk 0:00:10.6]} 54. Qxd7+ {[%clk 0:00:04.4]} 54... Qxd7 {[%clk
0:00:09.6]} 55. Rxd7+ {[%clk 0:00:05.3]} 55... Kf8 {[%clk 0:00:09.3]} 56. Rxh7
{[%clk 0:00:03.9]} 1-0

[Event "*** SCC Grand Prix: Titled Tuesday Blitz"]
[Site "Chess.com"]
[Date "2020.07.21"]
[Round "4"]
[White "KobyKalavannan"]
[Black "SARGISMV"]
[Result "1-0"]
[WhiteElo "2718"]
[BlackElo "2508"]
[TimeControl "180+1"]
[EndTime "10:39:28 PDT"]
[Termination "KobyKalavannan won by resignation"]

1. d4 {[%clk 0:03:00.9]} 1... c5 {[%clk 0:02:58]} 2. c3 {[%clk 0:02:56]} 2... g6
{[%clk 0:02:56.3]} 3. Nf3 {[%clk 0:02:53.3]} 3... Bg7 {[%clk 0:02:56.3]} 4. g3
{[%clk 0:02:50.7]} 4... b6 {[%clk 0:02:56]} 5. Bg2 {[%clk 0:02:50.7]} 5... Bb7
{[%clk 0:02:56.6]} 6. O-O {[%clk 0:02:50.2]} 6... Nf6 {[%clk 0:02:57.2]} 7. dxc5
{[%clk 0:02:45.8]} 7... bxc5 {[%clk 0:02:56.5]} 8. Qb3 {[%clk 0:02:46.4]} 8...
Bd5 {[%clk 0:02:36.9]} 9. c4 {[%clk 0:02:43.8]} 9... Bc6 {[%clk 0:02:35.4]} 10.
Nc3 {[%clk 0:02:43.5]} 10... O-O {[%clk 0:02:35.9]} 11. Be3 {[%clk 0:02:41.3]}
11... d6 {[%clk 0:02:29.2]} 12. Rfd1 {[%clk 0:02:41.1]} 12... Qb6 {[%clk
0:02:27.4]} 13. Qc2 {[%clk 0:02:33.3]} 13... a5 {[%clk 0:02:15.3]} 14. Rac1
{[%clk 0:02:32.3]} 14... Na6 {[%clk 0:02:11]} 15. Rd2 {[%clk 0:02:21.1]} 15...
Rab8 {[%clk 0:02:07.7]} 16. h4 {[%clk 0:02:15.3]} 16... Rb7 {[%clk 0:01:37.4]}
17. Qd1 {[%clk 0:02:12.8]} 17... Rfb8 {[%clk 0:01:32.8]} 18. b3 {[%clk
0:01:58.3]} 18... Ne4 {[%clk 0:01:16.6]} 19. Nxe4 {[%clk 0:01:56]} 19... Bxe4
{[%clk 0:01:17.5]} 20. Ne1 {[%clk 0:01:48.7]} 20... Bxg2 {[%clk 0:01:10.6]} 21.
Nxg2 {[%clk 0:01:49.6]} 21... a4 {[%clk 0:01:09.4]} 22. Rb1 {[%clk 0:01:38.4]}
22... Qc6 {[%clk 0:01:02.2]} 23. Nf4 {[%clk 0:01:36.5]} 23... axb3 {[%clk
0:00:48]} 24. axb3 {[%clk 0:01:37.4]} 24... Nb4 {[%clk 0:00:47.6]} 25. h5 {[%clk
0:01:31.5]} 25... Qe4 {[%clk 0:00:40.3]} 26. hxg6 {[%clk 0:01:27.5]} 26... hxg6
{[%clk 0:00:39.6]} 27. Ng2 {[%clk 0:01:15]} 27... Bc3 {[%clk 0:00:33.1]} 28. f3
{[%clk 0:01:11]} 28... Qe6 {[%clk 0:00:25.9]} 29. Kf2 {[%clk 0:01:04.4]} 29...
Bxd2 {[%clk 0:00:25.4]} 30. Qxd2 {[%clk 0:01:05.3]} 30... Nc6 {[%clk 0:00:25.1]}
31. Nf4 {[%clk 0:01:05.6]} 31... Qe5 {[%clk 0:00:21.2]} 32. Nd3 {[%clk
0:00:59.8]} 32... Qf6 {[%clk 0:00:17.9]} 33. Bg5 {[%clk 0:00:59.6]} 33... Qd4+
{[%clk 0:00:13.8]} 34. e3 {[%clk 0:00:59.8]} 34... Qg7 {[%clk 0:00:11.5]} 35.
Qc2 {[%clk 0:00:56.2]} 35... Nb4 {[%clk 0:00:10.7]} 36. Nxb4 {[%clk 0:00:54.6]}
36... Rxb4 {[%clk 0:00:11.6]} 37. Bxe7 {[%clk 0:00:53.5]} 37... Qe5 {[%clk
0:00:11]} 38. Bh4 {[%clk 0:00:47.6]} 38... g5 {[%clk 0:00:11]} 39. f4 {[%clk
0:00:47.3]} 39... gxf4 {[%clk 0:00:05.7]} 40. gxf4 {[%clk 0:00:48.2]} 40... Qh5
{[%clk 0:00:04.8]} 41. Rg1+ {[%clk 0:00:32.2]} 41... Kf8 {[%clk 0:00:05]} 42.
Bf6 {[%clk 0:00:32.8]} 42... Ke8 {[%clk 0:00:02.1]} 43. Qe4+ {[%clk 0:00:32.2]}
43... Kd7 {[%clk 0:00:01.8]} 44. Qe7+ {[%clk 0:00:32.5]} 44... Kc6 {[%clk
0:00:02.4]} 45. Qe4+ {[%clk 0:00:28.6]} 45... Kc7 {[%clk 0:00:02.6]} 46. Qe7+
{[%clk 0:00:23.2]} 46... Kc6 {[%clk 0:00:03.1]} 47. Rg5 {[%clk 0:00:24.1]} 47...
Qh2+ {[%clk 0:00:02.4]} 48. Rg2 {[%clk 0:00:24.7]} 48... Rxb3 {[%clk 0:00:03]}
49. Rxh2 {[%clk 0:00:24.1]} 49... Rb2+ {[%clk 0:00:03.5]} 50. Kf3 {[%clk
0:00:24.6]} 50... Rxh2 {[%clk 0:00:02.9]} 51. Qe4+ {[%clk 0:00:25.3]} 51... Kc7
{[%clk 0:00:03.4]} 52. Qe7+ {[%clk 0:00:25.3]} 52... Kc6 {[%clk 0:00:03.6]} 53.
Qxf7 {[%clk 0:00:25.3]} 53... Rh3+ {[%clk 0:00:03.7]} 54. Kg4 {[%clk 0:00:25]}
54... Rxe3 {[%clk 0:00:04.2]} 55. Qd5+ {[%clk 0:00:25.2]} 55... Kb6 {[%clk
0:00:04.8]} 56. Qxd6+ {[%clk 0:00:24.8]} 56... Kb7 {[%clk 0:00:05.5]} 57. Be5
{[%clk 0:00:22.5]} 57... Rg8+ {[%clk 0:00:06.4]} 58. Kf5 {[%clk 0:00:22.9]}
58... Rxe5+ {[%clk 0:00:06.2]} 59. fxe5 {[%clk 0:00:22.7]} 59... Rc8 {[%clk
0:00:06.8]} 60. e6 {[%clk 0:00:22.8]} 60... Rc6 {[%clk 0:00:07.7]} 61. Qd5
{[%clk 0:00:21]} 61... Kc7 {[%clk 0:00:07.7]} 62. e7 {[%clk 0:00:21.3]} 62...
Rf6+ {[%clk 0:00:08.4]} 63. Kxf6 {[%clk 0:00:20.9]} 1-0

[Event "*** SCC Grand Prix: Titled Tuesday Blitz"]
[Site "Chess.com"]
[Date "2020.07.21"]
[Round "4"]
[White "capatl"]
[Black "DenisQ"]
[Result "0-1"]
[WhiteElo "2404"]
[BlackElo "2630"]
[TimeControl "180+1"]
[EndTime "10:39:28 PDT"]
[Termination "DenisQ won by resignation"]

1. c4 {[%clk 0:03:00.9]} 1... Nf6 {[%clk 0:02:58.7]} 2. Nc3 {[%clk 0:03:00.4]}
2... d5 {[%clk 0:02:56.8]} 3. cxd5 {[%clk 0:03:00.1]} 3... Nxd5 {[%clk
0:02:57.5]} 4. g3 {[%clk 0:02:57.9]} 4... g6 {[%clk 0:02:56.6]} 5. Bg2 {[%clk
0:02:58.2]} 5... Nb6 {[%clk 0:02:55.8]} 6. Nf3 {[%clk 0:02:57.9]} 6... Bg7
{[%clk 0:02:55.7]} 7. O-O {[%clk 0:02:58.8]} 7... Nc6 {[%clk 0:02:55.4]} 8. b3
{[%clk 0:02:46.6]} 8... O-O {[%clk 0:02:54.1]} 9. Bb2 {[%clk 0:02:46.4]} 9... a5
{[%clk 0:02:54.1]} 10. a3 {[%clk 0:02:42]} 10... e5 {[%clk 0:02:32.2]} 11. d3
{[%clk 0:02:40.5]} 11... Be6 {[%clk 0:02:30.9]} 12. Ne4 {[%clk 0:02:24.7]} 12...
Bd5 {[%clk 0:02:22.5]} 13. Nfd2 {[%clk 0:02:11]} 13... Nd4 {[%clk 0:02:17.6]}
14. Rc1 {[%clk 0:01:54.4]} 14... c6 {[%clk 0:02:06]} 15. e3 {[%clk 0:01:35.7]}
15... Ne6 {[%clk 0:02:02.4]} 16. Nc4 {[%clk 0:01:32.8]} 16... f5 {[%clk
0:01:43.9]} 17. Ned6 {[%clk 0:01:17]} 17... Nxc4 {[%clk 0:01:34.4]} 18. dxc4
{[%clk 0:00:56.8]} 18... Bxg2 {[%clk 0:01:26.2]} 19. Kxg2 {[%clk 0:00:57.7]}
19... Qb6 {[%clk 0:01:19.1]} 20. Qc2 {[%clk 0:00:39.7]} 20... Nc5 {[%clk
0:01:13]} 21. b4 {[%clk 0:00:23]} 21... axb4 {[%clk 0:01:13.9]} 22. axb4 {[%clk
0:00:23.4]} 22... Qxb4 {[%clk 0:01:13]} 23. Rb1 {[%clk 0:00:24.3]} 23... Ra2
{[%clk 0:01:11.2]} 24. Bc3 {[%clk 0:00:11.7]} 24... Rxc2 {[%clk 0:00:49.3]} 25.
Bxb4 {[%clk 0:00:11.5]} 25... Nd3 {[%clk 0:00:49.3]} 26. Nxb7 {[%clk 0:00:10.7]}
26... Ra8 {[%clk 0:00:33.8]} 27. c5 {[%clk 0:00:10.6]} 27... Raa2 {[%clk
0:00:29.6]} 28. Be1 {[%clk 0:00:09.3]} 28... e4 {[%clk 0:00:22.5]} 29. Nd6
{[%clk 0:00:09.3]} 29... Bc3 {[%clk 0:00:13.5]} 30. Rb8+ {[%clk 0:00:10.2]}
30... Kg7 {[%clk 0:00:13.1]} 31. Bxc3+ {[%clk 0:00:10.1]} 31... Rxc3 {[%clk
0:00:12.7]} 32. Rb7+ {[%clk 0:00:11]} 32... Kf6 {[%clk 0:00:12.1]} 33. Ne8+
{[%clk 0:00:09.9]} 33... Ke6 {[%clk 0:00:11.5]} 34. Ng7+ {[%clk 0:00:10.3]}
34... Kd5 {[%clk 0:00:11.4]} 35. Ne8 {[%clk 0:00:10.4]} 35... Rcc2 {[%clk
0:00:10.8]} 36. Rxh7 {[%clk 0:00:11.3]} 36... Rxf2+ {[%clk 0:00:10.3]} 37. Rxf2
{[%clk 0:00:12.2]} 37... Rxf2+ {[%clk 0:00:09.9]} 38. Kg1 {[%clk 0:00:13.1]}
38... Re2 {[%clk 0:00:10.5]} 39. Rd7+ {[%clk 0:00:13.7]} 39... Kxc5 {[%clk
0:00:09.9]} 40. Nd6 {[%clk 0:00:14.6]} 40... Rxe3 {[%clk 0:00:09.5]} 41. Nb7+
{[%clk 0:00:14]} 41... Kb6 {[%clk 0:00:09.8]} 42. Nd8 {[%clk 0:00:13.3]} 42...
Re1+ {[%clk 0:00:10.1]} 43. Kg2 {[%clk 0:00:13.3]} 43... Nc5 {[%clk 0:00:10.2]}
44. Rd6 {[%clk 0:00:13.5]} 44... e3 {[%clk 0:00:10.1]} 45. Rxc6+ {[%clk
0:00:14.2]} 45... Kb5 {[%clk 0:00:09.6]} 46. Rxg6 {[%clk 0:00:15.1]} 46... e2
{[%clk 0:00:09.2]} 47. Kf2 {[%clk 0:00:15.4]} 47... Nd3+ {[%clk 0:00:09.4]} 48.
Ke3 {[%clk 0:00:15.7]} 48... Nc1 {[%clk 0:00:06.5]} 49. Re6 {[%clk 0:00:13.8]}
49... Rf1 {[%clk 0:00:06]} 50. Kd2 {[%clk 0:00:13.8]} 50... Rd1+ {[%clk
0:00:06.2]} 51. Kc2 {[%clk 0:00:13.8]} 51... e1=Q {[%clk 0:00:07.1]} 52. Rxe1
{[%clk 0:00:14]} 52... Rxe1 {[%clk 0:00:07.9]} 53. Nf7 {[%clk 0:00:14.7]} 53...
Ne2 {[%clk 0:00:08]} 54. Nd6+ {[%clk 0:00:15.6]} 54... Kc5 {[%clk 0:00:07.9]}
55. Nxf5 {[%clk 0:00:16.1]} 55... Nd4+ {[%clk 0:00:08]} 56. Nxd4 {[%clk
0:00:14.6]} 56... Kxd4 {[%clk 0:00:08.9]} 57. Kd2 {[%clk 0:00:15.5]} 57... Rh1
{[%clk 0:00:08.7]} 58. h4 {[%clk 0:00:16.4]} 58... Rh2+ {[%clk 0:00:09.1]} 59.
Ke1 {[%clk 0:00:16.6]} 59... Ke3 {[%clk 0:00:10]} 60. Kf1 {[%clk 0:00:17.4]}
60... Rh3 {[%clk 0:00:10]} 61. g4 {[%clk 0:00:17.9]} 61... Rxh4 {[%clk 0:00:10]}
0-1